bitfinex/quotes_SOLUSD_20250708
["timestamp","ask_amount","ask_price","bid_price","bid_amount"]
[1751981509297,0.06,152.22,152.19,12.37196634]
[1751981510094,0.06,152.22,152.2,5.80136616]
[1751981510300,0.06,152.22,152.21,5.80136616]
[1751981510498,0.06,152.22,152.19,6.57060018]
[1751981510499,0.06,152.22,152.2,5.80136616]
[1751981511233,0.06,152.22,152.19,12.37196634]
[1751981511419,0.06,152.22,152.19,6.57060018]
[1751981511922,0.06,152.22,152.21,5.80136616]
[1751981512423,0.06,152.22,152.18,24.45101502]
[1751981512601,0.06,152.22,152.18,5.80136616]
[1751981512798,0.06,152.22,152.17,32.57159755]
[1751981513018,0.06,152.22,152.19,5.80136616]
[1751981513219,0.06,152.22,152.18,5.80136616]
[1751981513416,0.06,152.22,152.19,6.57073395]
[1751981514093,5.86136616,152.22,152.17,26.0]
[1751981514294,5.80136616,152.21,152.17,26.0]
[1751981514894,5.80136616,152.2,152.17,6.57140399]
[1751981515123,5.80136616,152.18,152.16,0.03]
[1751981515304,5.80136616,152.17,152.16,0.03]
[1751981515619,12.37296371,152.17,152.16,0.03]
[1751981516002,19.71556403,152.17,152.16,0.03]
[1751981520527,51.51693019,152.17,152.16,0.03]
[1751981520706,51.51693019,152.17,152.16,1e-08]
[1751981520707,50.72757905,152.17,152.16,1e-08]
[1751981521527,70.92621289,152.17,152.16,1e-08]
[1751981521695,86.01656403,152.17,152.16,1e-08]
[1751981522906,91.81793019,152.17,152.16,1e-08]
[1751981523229,86.00661658,152.17,152.16,1e-08]
[1751981528042,13.13401903,152.17,152.16,1e-08]
[1751981528221,7.33265287,152.17,152.16,1e-08]
[1751981528544,13.13243167,152.17,152.16,1e-08]
[1751981529805,19.70402922,152.17,152.16,1e-08]
[1751981530122,45.70402922,152.17,152.16,1e-08]
[1751981532235,79.44402922,152.17,152.16,1e-08]
[1751981534934,7.33106551,152.17,152.16,1e-08]
[1751981535113,46.56136616,152.18,152.16,1e-08]
[1751981535512,5.80136616,152.17,152.16,1e-08]
[1751981536129,47.3311916,152.18,152.16,1e-08]
[1751981536331,39.54136616,152.17,152.16,1e-08]
[1751981536721,33.74,152.17,152.16,1e-08]
[1751981536909,39.54136616,152.17,152.16,1e-08]
[1751981540241,19.69184951,152.17,152.16,1e-08]
[1751981540713,76.24706453,152.17,152.16,1e-08]
[1751981541435,44.64964886,152.16,152.15,1e-08]
[1751981541636,97.29126698,152.16,152.15,1e-08]
[1751981541839,77.86329642,152.16,152.15,1e-08]
[1751981545771,79.41399642,152.16,152.15,1e-08]
[1751981547847,34.0912641,152.16,152.15,1e-08]
[1751981548146,79.41399642,152.16,152.15,1e-08]
[1751981553277,86.1071038,152.16,152.15,1e-08]
[1751981553884,44.64964886,152.13,152.12,0.2]
[1751981554055,98.52990082,152.13,152.12,0.2]
[1751981554455,105.10322626,152.13,152.12,0.2]
[1751981558351,105.10322626,152.13,152.12,1e-08]
[1751981558663,105.10322626,152.13,152.11,1e-08]
[1751981558664,110.90459242,152.13,152.11,1e-08]
[1751981558859,18.92161812,152.12,152.11,1e-08]
[1751981560077,26.0,152.09,152.01,32.57832551]
[1751981560281,5.80136616,152.04,152.01,32.57832551]
[1751981560478,33.74,152.06,152.01,38.37969167]
[1751981560656,33.74,152.07,152.02,5.80136616]
[1751981560864,13.13446149,152.06,152.02,5.80136616]
[1751981561062,13.13403221,152.05,152.01,38.37969167]
[1751981561251,5.80136616,152.02,151.99,1.6338]
[1751981561664,13.13361578,152.02,151.99,1.6338]
[1751981561854,33.78,152.04,151.99,8.21314565]
[1751981562060,13.12944553,152.03,151.99,8.21314565]
[1751981562262,5.80136616,152.01,151.99,1.6338]
[1751981563579,40.35739403,152.04,151.99,8.21311414]
[1751981563753,5.80136616,152.02,151.99,8.21311414]
[1751981564262,5.80136616,152.01,152.0,0.03]
[1751981565861,7.31569602,152.02,152.0,0.03]
[1751981566177,5.80136616,152.01,152.0,0.03]
[1751981566550,7.31569602,152.02,152.0,0.03]
[1751981566746,5.80136616,152.02,152.0,0.03]
[1751981567485,7.31237762,152.03,152.0,5.83136616]
[1751981567785,33.04,152.06,152.02,5.80136616]
[1751981567786,7.04,152.06,152.02,5.80136616]
[1751981567973,7.04,152.06,152.03,5.80136616]
[1751981568159,7.04,152.06,152.0,18.67964886]
[1751981568362,5.80136616,152.07,152.02,5.80136616]
[1751981568564,13.11010662,152.07,152.03,6.57764914]
[1751981569092,5.80136616,152.04,152.01,6.57819071]
[1751981569253,5.80136616,152.03,152.0,0.03]
[1751981570278,5.80136616,152.02,152.0,0.03]
[1751981570458,33.86,152.04,152.0,0.03]
[1751981570661,5.80136616,152.02,152.0,0.03]
[1751981571284,40.43732449,152.04,152.0,0.03]
[1751981571562,5.80136616,152.02,152.0,0.03]
[1751981572479,33.86,152.04,152.0,0.03]
[1751981572666,5.80136616,152.03,152.0,0.03]
[1751981573263,5.80136616,152.02,152.0,0.03]
[1751981573664,5.80136616,152.03,152.0,0.03]
[1751981574288,5.80136616,152.02,152.0,0.03]
[1751981574786,5.80136616,152.01,152.0,0.03]
[1751981575171,84.29101502,152.01,152.0,0.03]
[1751981575373,5.80136616,152.0,151.87,8.08957891]
[1751981575680,5.80136616,151.94,151.89,5.80136616]
[1751981575873,5.80136616,151.94,151.9,5.80136616]
[1751981576060,52.48964886,151.99,151.92,5.80136616]
[1751981576256,5.80136616,151.96,151.92,5.80136616]
[1751981576870,5.80136616,151.96,151.93,6.58197854]
[1751981577294,85.06903053,151.99,151.93,6.58197854]
[1751981577589,5.80136616,151.97,151.94,1.6154]
[1751981578276,5.80136616,151.96,151.94,1.6154]
[1751981578477,7.28648095,151.98,151.92,6.58224982]
[1751981578813,5.80136616,151.95,151.92,6.58224982]
[1751981579785,5.80136616,151.93,151.9,6.58327847]
[1751981580172,6.58099836,151.96,151.9,6.58327847]
[1751981580369,6.58099836,151.96,151.89,14.50409692]
[1751981580678,5.80136616,151.91,151.89,1.6416]
[1751981580857,5.80136616,151.92,151.89,8.22506539]
[1751981581056,88.8,151.95,151.89,14.02643155]
[1751981581261,5.80136616,151.93,151.89,8.22506539]
[1751981581868,5.80136616,151.94,151.9,5.80136616]
[1751981582079,88.8,151.95,151.9,5.80136616]
[1751981582383,5.80136616,152.0,151.92,5.80136616]
[1751981582596,5.80136616,151.96,151.92,5.80136616]
[1751981582795,5.80136616,151.95,151.91,5.80136616]
[1751981583185,5.80136616,151.93,151.89,30.48571129]
[1751981583387,7.28277725,151.97,151.89,30.48571129]
[1751981583589,5.80136616,151.93,151.89,30.48571129]
[1751981583792,5.80136616,151.94,151.91,6.5828451]
[1751981584396,26.0,151.98,151.91,12.38421126]
[1751981584701,5.80136616,151.95,151.91,12.38421126]
[1751981584999,5.80136616,151.95,151.91,6.5828451]
[1751981585370,11.60273232,151.92,151.8,8.3262]
[1751981585578,5.80136616,151.87,151.81,23.05513029]
[1751981585788,5.80136616,151.87,151.8,8.3262]
[1751981585789,5.80136616,151.89,151.86,6.58501251]
[1751981586327,26.0,151.92,151.86,6.58501251]
[1751981586328,5.80136616,151.9,151.86,12.38637867]
[1751981586503,5.80136616,151.91,151.86,6.58501251]
[1751981586678,5.80136616,151.9,151.86,12.38637867]
[1751981587004,5.80136616,151.91,151.86,12.38637867]
[1751981587184,5.80136616,151.9,151.86,12.38637867]
[1751981587714,5.80136616,151.91,151.87,5.80136616]
[1751981587897,40.52179609,151.94,151.87,5.80136616]
[1751981588201,40.52179609,151.94,151.86,23.04754378]
[1751981588202,5.80136616,151.91,151.86,23.04754378]
[1751981588398,5.80136616,151.91,151.87,5.80136616]
[1751981588999,5.80136616,151.92,151.88,6.58414537]
[1751981589301,40.52179609,151.94,151.88,6.58414537]
[1751981589599,5.80136616,151.92,151.88,6.58414537]
[1751981590101,5.80136616,151.91,151.88,6.58414537]
[1751981590491,5.80136616,151.9,151.88,6.58414537]
[1751981590694,40.52179609,151.94,151.88,6.58414537]
[1751981591005,5.80136616,151.9,151.88,6.58414537]
[1751981591189,40.52179609,151.94,151.88,6.58414537]
[1751981591391,5.80136616,151.91,151.88,6.58414537]
[1751981591613,40.52179609,151.94,151.88,6.58414537]
[1751981591812,5.80136616,151.9,151.88,6.58414537]
[1751981592009,5.80136616,151.9,151.87,6.58441962]
[1751981594498,6.582025,151.93,151.87,6.58441962]
[1751981594897,5.80136616,151.9,151.87,6.58441962]
[1751981595108,6.582025,151.93,151.87,6.58441962]
[1751981595311,5.80136616,151.9,151.87,6.58441962]
[1751981596095,5.80136616,151.91,151.87,12.38578578]
[1751981596489,129.32171808,151.94,151.87,12.38578578]
[1751981596796,5.80136616,151.91,151.87,12.38578578]
[1751981597191,5.80136616,151.92,151.88,5.80136616]
[1751981597710,88.8,151.94,151.91,5.80136616]
[1751981597895,7.14,151.98,151.93,5.80136616]
[1751981598094,7.14,151.98,151.88,7.8934]
[1751981598095,7.14,151.98,151.94,5.80136616]
[1751981598284,7.14,151.98,151.93,5.80136616]
[1751981598285,5.80136616,151.97,151.93,5.80136616]
[1751981598797,5.80136616,151.97,151.94,6.58154534]
[1751981599414,5.80136616,151.96,151.92,6.58241179]
[1751981599788,5.80136616,151.94,151.88,24.35281413]
[1751981600010,5.80136616,151.93,151.89,5.80136616]
[1751981600415,5.80136616,151.93,151.89,12.38507805]
[1751981600717,5.80136616,151.93,151.89,6.58371189]
[1751981600914,5.80136616,151.92,151.89,6.58371189]
[1751981601118,5.80136616,151.91,151.88,14.47745087]
[1751981601287,5.80136616,151.91,151.88,8.20375087]
[1751981602403,5.80136616,151.92,151.88,8.20375087]
[1751981603910,5.80136616,151.91,151.88,8.20375087]
[1751981604232,5.80136616,151.92,151.88,8.20375087]
[1751981604519,5.80136616,151.9,151.85,12.39226616]
[1751981604825,5.80136616,151.9,151.86,5.80136616]
[1751981605005,5.80136616,151.9,151.85,12.39226616]
[1751981605394,7.2899251,151.92,151.85,12.39226616]
[1751981605597,5.80136616,151.9,151.86,6.58469201]
[1751981606219,5.80136616,151.88,151.85,6.58542178]
[1751981608847,5.80136616,151.88,151.84,14.02026565]
[1751981609103,5.80136616,151.86,151.82,5.80136616]
[1751981609402,5.80136616,151.87,151.82,5.80136616]
[1751981609624,7.28737482,151.88,151.83,5.80136616]
[1751981609815,5.80136616,151.87,151.85,0.03]
[1751981610134,5.80136616,151.88,151.85,0.03]
[1751981610334,7.28647052,151.89,151.85,0.03]
[1751981610620,12.94136616,151.91,151.87,5.80136616]
[1751981610830,7.14,151.91,151.86,1.6112]
[1751981611000,5.80136616,151.92,151.88,5.80136616]
[1751981611403,5.80136616,151.92,151.86,1.6112]
[1751981611621,5.80136616,151.92,151.87,5.80136616]
[1751981611822,5.80136616,151.92,151.88,5.80136616]
[1751981612006,31.80136616,151.93,151.89,6.58371189]
[1751981613335,5.80136616,151.92,151.89,6.58371189]
[1751981613712,31.80136616,151.93,151.89,6.58371189]
[1751981615038,5.80136616,151.94,151.89,12.38507805]
[1751981615332,5.80136616,151.94,151.9,5.80136616]
[1751981615711,5.80136616,151.94,151.89,12.38507805]
[1751981615913,5.80136616,151.93,151.89,12.38507805]
[1751981616629,5.80136616,151.93,151.89,6.58371189]
[1751981616815,13.10280114,151.93,151.89,6.58371189]
[1751981617002,5.80136616,151.92,151.89,6.58371189]
[1751981618114,5.80136616,151.93,151.89,6.58371189]
[1751981618515,5.80136616,151.91,151.87,6.58457891]
[1751981618715,5.80136616,151.91,151.87,12.38594507]
[1751981619032,5.80136616,151.91,151.87,6.58457891]
[1751981619411,5.80136616,151.91,151.87,12.38594507]
[1751981619718,5.80136616,151.91,151.87,6.58457891]
[1751981620329,7.32398453,151.92,151.86,1.6112]
[1751981620330,5.80136616,151.89,151.86,1.6112]
[1751981620527,5.80136616,151.88,151.86,1.6112]
[1751981620831,5.80136616,151.87,151.85,0.03]
[1751981621149,5.80136616,151.86,151.85,0.03]
[1751981621741,7.32186658,151.88,151.85,0.03]
[1751981622045,13.12323274,151.87,151.85,0.03]
[1751981622217,5.80136616,151.87,151.85,0.03]
[1751981622644,13.12213228,151.87,151.85,0.03]
[1751981622959,39.72338144,151.9,151.85,5.83136616]
[1751981622960,4.88110618,151.86,151.85,5.83136616]
[1751981623118,7.14,151.9,151.85,0.03]
[1751981623318,4.88211114,151.89,151.87,5.80136616]
[1751981623518,4.88211114,151.88,151.87,5.80136616]
[1751981623736,4.88211114,151.88,151.85,6.61526316]
[1751981623919,5.80136616,151.88,151.85,6.61526316]
[1751981624328,10.68404721,151.87,151.85,0.03]
[1751981624634,5.80136616,151.87,151.85,0.03]
[1751981624823,5.80136616,151.87,151.85,6.61542287]
[1751981625215,5.80136616,151.87,151.85,0.03]
[1751981626525,5.80136616,151.88,151.85,0.03]
[1751981626725,4.88126781,151.87,151.85,0.03]
[1751981626942,5.80136616,151.89,151.85,5.83136616]
[1751981627243,4.8811083,151.88,151.85,5.83136616]
[1751981627549,5.80136616,151.89,151.85,5.83136616]
[1751981627550,4.8811083,151.87,151.85,5.83136616]
[1751981627752,5.80136616,151.89,151.86,6.58501251]
[1751981628244,5.80136616,151.88,151.86,6.58501251]
[1751981628434,7.32118828,151.89,151.86,6.58501251]
[1751981628638,7.14,151.9,151.86,6.58501251]
[1751981629232,7.14,151.9,151.87,5.80136616]
[1751981629555,5.80136616,151.91,151.86,6.58501251]
[1751981629744,7.32394144,151.93,151.88,6.58414537]
[1751981629930,7.32394144,151.92,151.88,6.58414537]
[1751981630126,7.32394144,151.91,151.88,12.38551153]
[1751981631150,13.1253076,151.91,151.88,6.58414537]
[1751981631345,5.80136616,151.91,151.88,6.58414537]
[1751981631857,7.3249711,151.92,151.88,6.58414537]
[1751981632047,13.12633726,151.91,151.88,6.58414537]
[1751981632352,5.80136616,151.91,151.88,6.58414537]
[1751981633734,13.1254227,151.91,151.88,6.58414537]
[1751981633934,5.80136616,151.91,151.88,6.58414537]
[1751981634332,13.12450813,151.91,151.88,6.58414537]
[1751981634641,5.80136616,151.91,151.88,6.58414537]
[1751981634852,7.32328159,151.93,151.9,5.80136616]
[1751981635161,5.80136616,151.95,151.91,5.80136616]
[1751981635366,7.3237469,151.94,151.92,5.80136616]
[1751981635572,7.1,151.96,151.92,5.80136616]
[1751981635573,12.90136616,151.96,151.92,5.80136616]
[1751981635732,7.32298833,151.95,151.92,5.80136616]
[1751981635932,7.32298833,151.94,151.92,5.80136616]
[1751981636236,12.90136616,151.96,151.92,5.80136616]
[1751981636442,7.32317848,151.95,151.92,5.80136616]
[1751981636629,7.32317848,151.94,151.92,5.80136616]
[1751981636826,7.1,151.96,151.92,5.80136616]
[1751981637031,31.80136616,151.98,151.94,5.80136616]
[1751981637249,7.32395093,151.97,151.94,5.80136616]
[1751981637452,13.12531709,151.97,151.94,6.58140241]
[1751981637640,5.80136616,151.97,151.94,6.58140241]
[1751981638043,13.12546779,151.97,151.94,6.58140241]
[1751981638244,5.80136616,151.98,151.94,12.38276857]
[1751981638440,13.12406747,151.98,151.94,12.38276857]
[1751981638638,7.32270131,151.98,151.95,5.80136616]
[1751981638832,26.0,151.99,151.95,5.80136616]
[1751981639039,5.86136616,152.0,151.94,24.69696577]
[1751981639241,5.86136616,152.0,151.96,5.80136616]
[1751981639463,13.18185849,152.0,151.97,6.5802461]
[1751981639655,5.86136616,152.0,151.97,6.5802461]
[1751981640327,0.06,152.0,151.97,12.38161226]
[1751981640534,5.86136616,152.0,151.97,6.5802461]
[1751981641345,5.86136616,152.0,151.96,12.38189144]
[1751981642041,5.86136616,152.0,151.94,1.6617]
[1751981642042,5.80136616,151.99,151.94,1.6617]
[1751981642244,5.80136616,151.97,151.94,1.6617]
[1751981642559,5.80136616,151.96,151.92,5.80136616]
[1751981642748,5.80136616,151.96,151.91,12.39776616]
[1751981643148,5.80136616,151.95,151.9,7.36886616]
[1751981643349,7.32042176,151.97,151.88,6.5839693]
[1751981643350,33.32042176,151.96,151.88,6.5839693]
[1751981643663,5.80136616,151.91,151.88,6.5839693]
[1751981646061,5.80136616,151.93,151.88,6.5839693]
[1751981646270,5.80136616,151.93,151.89,5.80136616]
[1751981646452,5.80136616,151.93,151.88,12.38533546]
[1751981646854,5.80136616,151.93,151.89,5.80136616]
[1751981647650,5.80136616,151.93,151.89,12.38464722]
[1751981647852,5.80136616,151.92,151.89,6.58328106]
[1751981648350,40.52158985,151.94,151.86,1.5675]
[1751981648351,5.80136616,151.9,151.86,1.5675]
[1751981648557,5.80136616,151.9,151.86,8.15235596]
[1751981649158,5.80136616,151.9,151.86,13.95372212]
[1751981649673,5.80136616,151.89,151.86,6.58485596]
[1751981649855,5.80136616,151.87,151.85,0.03]
[1751981650055,5.80136616,151.88,151.85,6.61533258]
[1751981650256,5.80136616,151.89,151.85,12.41669874]
[1751981650878,4.87861779,151.88,151.85,12.41669874]
[1751981651051,5.80136616,151.89,151.85,12.41669874]
[1751981651246,13.11713305,151.9,151.85,12.41669874]
[1751981651451,4.87875868,151.89,151.86,5.80136616]
[1751981651661,5.80136616,151.91,151.86,5.80136616]
[1751981651976,5.80136616,151.89,151.85,12.41669874]
[1751981652169,5.80136616,151.87,151.85,0.03]
[1751981652961,5.80136616,151.88,151.85,0.03]
[1751981654054,13.11696617,151.89,151.85,0.03]
[1751981654357,10.68005592,151.88,151.85,0.03]
[1751981654571,5.80136616,151.87,151.85,0.03]
[1751981654779,4.87856044,151.86,151.85,0.03]
[1751981655553,13.11557671,151.89,151.85,0.03]
[1751981655749,4.87823188,151.88,151.85,0.03]
[1751981655982,4.87823188,151.87,151.85,0.03]
[1751981656179,5.80136616,151.89,151.85,0.03]
[1751981656482,4.87773705,151.88,151.85,5.83136616]
[1751981656680,4.87773705,151.87,151.85,5.83136616]
[1751981656858,13.11491123,151.89,151.85,5.83136616]
[1751981657061,4.87731941,151.88,151.85,5.83136616]
[1751981657482,5.80136616,151.9,151.85,5.83136616]
[1751981657652,10.67869341,151.89,151.85,0.03]
[1751981657852,4.87732725,151.88,151.85,5.83136616]
[1751981658276,4.87732725,151.88,151.85,0.03]
[1751981658476,4.87732725,151.87,151.85,0.03]
[1751981659292,10.67869341,151.87,151.85,0.03]
[1751981659463,5.80136616,151.86,151.85,0.03]
[1751981659877,5.80136616,151.87,151.85,0.03]
[1751981660178,6.58429084,151.88,151.85,0.03]
[1751981660477,39.72136616,151.89,151.85,5.83136616]
[1751981660677,5.80136616,151.9,151.86,5.80136616]
[1751981660977,4.87605032,151.89,151.86,5.80136616]
[1751981661280,4.87605032,151.89,151.85,5.83136616]
[1751981662171,4.87605032,151.88,151.85,5.83136616]
[1751981662484,5.80136616,151.9,151.85,12.41654755]
[1751981662687,4.87600915,151.89,151.85,12.41654755]
[1751981662985,4.87600915,151.89,151.86,5.80136616]
[1751981663475,4.87600915,151.89,151.86,12.38624186]
[1751981663657,4.87600915,151.88,151.86,12.38624186]
[1751981663854,5.80136616,151.88,151.85,0.03]
[1751981664257,6.58348976,151.9,151.85,6.61540806]
[1751981664484,10.67514829,151.89,151.85,12.41677422]
[1751981664683,4.87378213,151.88,151.85,6.61540806]
[1751981664867,5.80136616,151.89,151.85,12.41677422]
[1751981665560,5.80136616,151.89,151.85,0.03]
[1751981665859,5.80136616,151.89,151.85,5.83136616]
[1751981666481,5.80136616,151.89,151.85,0.03]
[1751981666680,5.80136616,151.89,151.85,5.83136616]
[1751981666861,5.80136616,151.88,151.85,0.03]
[1751981668285,5.80136616,151.89,151.85,5.83136616]
[1751981668788,7.31073961,151.9,151.87,5.80136616]
[1751981668956,5.80136616,151.92,151.88,5.80136616]
[1751981669283,5.80136616,151.89,151.86,1.6179]
[1751981669665,7.31138285,151.92,151.85,6.1406]
[1751981669666,5.80136616,151.88,151.85,0.03]
[1751981672085,5.80136616,151.89,151.85,0.03]
[1751981674586,5.80136616,151.88,151.85,0.03]
[1751981675167,25.23206065,151.92,151.85,5.83136616]
[1751981675367,5.80136616,151.89,151.85,5.83136616]
[1751981677090,5.80136616,151.89,151.85,0.03]
[1751981677268,5.80136616,151.89,151.85,5.83136616]
[1751981677892,5.80136616,151.89,151.85,0.03]
[1751981678070,5.80136616,151.89,151.85,5.83136616]
[1751981679709,5.80136616,151.89,151.86,6.58501251]
[1751981680996,5.80136616,151.89,151.85,6.615261]
[1751981681203,5.80136616,151.88,151.85,6.615261]
[1751981682790,5.80136616,151.89,151.85,12.41662716]
[1751981684183,5.80136616,151.89,151.85,6.615261]
[1751981684380,5.80136616,151.88,151.85,0.03]
[1751981684972,5.80136616,151.88,151.85,6.6153262]
[1751981686382,13.12301268,151.88,151.85,6.6153262]
[1751981687299,5.80136616,151.88,151.85,6.6153262]
[1751981688303,7.34073553,151.87,151.85,6.6153262]
[1751981688601,5.80136616,151.88,151.85,6.6153262]
[1751981688799,7.34097784,151.87,151.85,6.6153262]
[1751981688991,5.80136616,151.88,151.85,0.03]
[1751981689182,7.34097784,151.87,151.85,0.03]
[1751981689384,5.80136616,151.88,151.85,0.03]
[1751981689606,7.3425112,151.87,151.85,0.03]
[1751981689901,7.3425112,151.86,151.85,0.03]
[1751981691224,13.14387736,151.86,151.85,0.03]
[1751981692216,19.72888987,151.86,151.85,0.03]
[1751981692397,7.3425112,151.86,151.85,0.03]
[1751981692593,19.72888987,151.86,151.85,0.03]
[1751981693291,19.73653937,151.86,151.85,0.03]
[1751981693684,13.15152686,151.86,151.85,0.03]
[1751981695317,19.73653937,151.86,151.85,0.03]
[1751981697815,13.93517321,151.86,151.85,0.03]
[1751981698115,19.73653937,151.86,151.85,0.03]
[1751981700616,19.72536204,151.86,151.85,0.03]
[1751981700821,38.3750109,151.86,151.85,0.03]
[1751981701034,51.23637706,151.86,151.85,1e-08]
[1751981701593,58.61130107,151.86,151.85,1e-08]
[1751981702024,44.64964886,151.82,151.75,1.3567208]
[1751981702311,5.80136616,151.79,151.75,1.3567208]
[1751981702510,12.38956067,151.79,151.75,1.3567208]
[1751981703205,5.80136616,151.78,151.75,1.3567208]
[1751981703926,33.76,151.81,151.76,5.80136616]
[1751981704117,39.56136616,151.81,151.77,5.80136616]
[1751981704294,5.80136616,151.8,151.76,5.80136616]
[1751981704713,46.14876152,151.81,151.76,6.58927733]
[1751981704913,39.56136616,151.81,151.77,5.80136616]
[1751981705114,33.76,151.81,151.77,5.80136616]
[1751981705428,33.76,151.81,151.78,5.80136616]
[1751981705824,33.76,151.81,151.76,6.58927733]
[1751981706031,33.76,151.81,151.78,5.80136616]
[1751981706631,5.80136616,151.82,151.78,12.38978918]
[1751981706824,12.38814105,151.82,151.76,6.5893516]
[1751981707025,12.38814105,151.82,151.78,5.80136616]
[1751981707207,5.80136616,151.82,151.78,5.80136616]
[1751981707413,5.80136616,151.82,151.76,6.5893516]
[1751981707616,5.80136616,151.82,151.78,5.80136616]
[1751981708430,5.80136616,151.83,151.79,5.80136616]
[1751981708622,121.86,151.87,151.8,5.80136616]
[1751981708825,5.80136616,151.84,151.8,7.34616616]
[1751981709223,13.11809905,151.85,151.81,5.80136616]
[1751981709437,13.11809905,151.85,151.8,1.5448]
[1751981709438,5.80136616,151.86,151.82,5.80136616]
[1751981709944,7.31694203,151.86,151.8,1.5448]
[1751981710229,7.31694203,151.86,151.82,5.80136616]
[1751981710444,13.11830819,151.86,151.82,5.80136616]
[1751981710615,13.11830819,151.86,151.82,12.38805339]
[1751981711015,13.11830819,151.86,151.82,5.80136616]
[1751981711222,13.11830819,151.86,151.81,6.58718134]
[1751981711433,7.06,151.87,151.84,5.80136616]
[1751981711636,12.86136616,151.87,151.83,5.80136616]
[1751981711819,5.80136616,151.86,151.81,6.58718134]
[1751981712017,13.12380442,151.86,151.82,5.80136616]
[1751981712216,13.12380442,151.86,151.81,6.58718134]
[1751981712217,7.32243826,151.86,151.81,6.58718134]
[1751981712425,7.32243826,151.86,151.83,5.80136616]
[1751981712731,7.06,151.87,151.83,12.38762437]
[1751981712914,46.60136616,151.87,151.83,12.38762437]
[1751981714734,7.06,151.87,151.84,5.80136616]
[1751981714936,7.06,151.87,151.85,5.80136616]
[1751981715236,88.8,151.92,151.86,7.45846616]
[1751981715534,7.32339569,151.91,151.88,5.80136616]
[1751981715736,5.80136616,151.93,151.89,5.80136616]
[1751981716038,13.1250438,151.93,151.89,5.80136616]
[1751981716242,6.594,152.04,151.84,5.80136616]
[1751981716243,7.29857722,152.01,151.94,1.2821]
[1751981716410,12.2104627,152.15,152.01,38.39964886]
[1751981716615,0.06,152.16,152.09,6.57505424]
[1751981716838,0.06,152.16,152.11,5.80136616]
[1751981717010,5.86136616,152.16,152.1,5.80136616]
[1751981717207,5.86136616,152.16,152.06,42.44043112]
[1751981717208,35.52,152.16,152.06,26.0]
[1751981717422,5.80136616,152.09,152.04,26.0]
[1751981717628,5.80136616,152.09,152.03,5.80136616]
[1751981718021,5.80136616,152.11,152.06,5.80136616]
[1751981718223,5.86136616,152.16,152.07,5.80136616]
[1751981718422,5.80136616,152.14,152.09,5.80136616]
[1751981718623,5.80136616,152.15,152.09,5.80136616]
[1751981718829,41.22136616,152.15,152.1,5.80136616]
[1751981719141,61.42,152.15,152.11,5.80136616]
[1751981719639,35.42,152.15,152.13,5.80136616]
[1751981719841,0.06,152.16,152.14,5.80136616]
[1751981720436,0.06,152.16,152.15,5.80136616]
[1751981720836,0.06,152.16,152.15,8.71676239]
[1751981725214,8.77676239,152.16,152.09,26.0]
[1751981725436,35.3,152.15,152.1,15.93818142]
[1751981725713,35.3,152.15,152.11,7.22141903]
[1751981725939,35.3,152.15,152.03,9.20014001]
[1751981726129,8.71676239,152.1,152.06,8.71676239]
[1751981726332,26.0,152.14,152.07,7.22221842]
[1751981726333,35.32,152.11,152.07,7.22221842]
[1751981726545,44.03676239,152.11,152.06,8.71676239]
[1751981726742,35.32,152.11,152.1,8.71676239]
[1751981726947,34.71676239,152.14,152.1,8.71676239]
[1751981727159,70.03676239,152.14,152.1,8.71676239]
[1751981727343,61.32,152.14,152.1,8.71676239]
[1751981727638,76.60988645,152.14,152.1,8.71676239]
[1751981728829,76.60988645,152.14,152.09,8.71676239]
[1751981729145,8.71676239,152.12,152.03,29.32213795]
[1751981729339,8.71676239,152.09,152.04,4.80160959]
[1751981729549,8.71676239,152.08,152.03,8.71676239]
[1751981729747,8.71676239,152.07,152.0,18.64964886]
[1751981730039,8.71676239,152.08,152.03,8.71676239]
[1751981730453,8.71676239,152.08,152.04,8.71676239]
[1751981730837,8.71676239,152.08,152.0,26.0]
[1751981730838,8.71676239,152.08,152.02,26.0]
[1751981731027,35.28,152.1,152.05,8.71676239]
[1751981731226,8.71676239,152.07,151.97,16.72790403]
[1751981731435,8.71676239,152.07,152.03,8.71676239]
[1751981731632,43.97676239,152.06,151.98,18.64964886]
[1751981731834,35.26,152.06,152.02,8.71676239]
[1751981732031,35.26,152.06,151.98,18.64964886]
[1751981732231,35.26,152.06,152.01,8.71676239]
[1751981732446,8.71676239,152.04,152.0,8.71676239]
[1751981732662,8.71676239,152.04,151.99,8.71676239]
[1751981732948,8.71676239,152.02,151.98,8.71676239]
[1751981733151,15.29527696,152.01,151.93,9.00380403]